Workbook

Sheet Plan d'actions (hidden)
B2: Plan d'actions
B4: N° | C4: ACTION | L4: PILOTE | M4: SUPPORT | N4: DATE | O4: STATUT

Sheet Feuil2 (hidden)
A1: ANNEE | B1: (vide)
B3: Étiquettes de colonnes
B4: AB | C4: Total général
A5: Nombre de TYPOLOGIE | B5: 1 | C5: 1

Sheet Siège des lésions (hidden)
A3: Étiquettes de lignes | B3: Nombre de TYPOLOGIE
A4: Total général

Sheet Données 2016 (hidden)
A1: Semaine : | B1: 51
A2: Semaines | B2: # d'évènements non analysés | C2: Objectif | D2: # de VSP / Visites terrain réalisées par Q3SE | E2: Objectif | F2: # d'actions en retard > 2 semaines | G2: Objectif | H2: # d'audits internes / suivi réalisés (cumulé à date) | I2: Objectif | J2: # de FOPI ou actions de progrès détectées par VSP | K2: Objectif | L2: # d'actions de progrès réalisées (cumulé à date) | M2: Objectif | N2: # de personnes formées 3SE (cumulé à date) | O2: Objectif | P2: # de personnes formées Q.Op | Q2: Objectif | R2: # de personnes sensibilisées au SMI | S2: Objectif | T2: # de personne ayant fait l'ANE (cumulé à date) | U2: Objectif
A3: Lien vers dossier source | B3: CHRONO | D3: Onglet vistes 2016 | F3: Onglet dysfonctionnement | H3: Programme de surveillance | L3: Base Dysfonctionnements - onglet "Action CS") | N3: Onglet suivi des formations | P3: Onglet suivi des formations
A4: 1 | C4: 2 | E4: 3 | G4: 250 | I4: 0 | K4: 1 | M4: 0 | O4: 2.7 | Q4: 0 | S4: 0 | U4: 0
A5: 2 | C5: 2 | E5: 3 | G5: 250 | I5: 0 | K5: 1 | M5: 0 | O5: 5.4 | Q5: 0 | S5: 0 | U5: 0
A6: 3 | C6: 2 | E6: 3 | G6: 250 | I6: =+I5+1 -> 1 | K6: 1 | M6: 0 | O6: =+O5+2.7 -> 8.1 | Q6: =+Q5+2 -> 2 | S6: =+S5+1 -> 1 | U6: =+U5+1 -> 1
A7: 4 | C7: 2 | E7: 3 | G7: 250 | I7: =+I6+1 -> 2 | K7: 1 | M7: 0 | O7: =+O6+2.7 -> 10.8 | Q7: =+Q6+2 -> 4 | S7: =+S6+1 -> 2 | T7: 3 | U7: 2
A8: 5 | C8: 2 | E8: 3 | G8: 250 | I8: 3 | K8: 1 | M8: 1 | N8: 18 | O8: =+O7+2.7 -> 13.5 | Q8: 6 | S8: 3 | U8: 3
A9: 6 | C9: 2 | E9: 3 | G9: 250 | I9: 4 | K9: 1 | M9: 1 | O9: 16.2 | P9: 29 | Q9: 8 | S9: 4 | U9: 4
A10: 7 | C10: 2 | E10: 3 | G10: 250 | I10: 5 | K10: 1 | M10: 1 | O10: 18.9 | Q10: 10 | S10: 5 | T10: 4 | U10: 5
A11: 8 | C11: 2 | E11: 3 | G11: 250 | I11: 6 | K11: 1 | M11: 1 | O11: 21.6 | Q11: 12 | S11: 6 | T11: 13 | U11: 6
A12: 9 | C12: 2 | E12: 3 | G12: 250 | I12: 7 | K12: 1 | M12: 2 | O12: 24.3 | P12: =+P9+8 -> 37 | Q12: 14 | S12: 7 | T12: 13 | U12: 7
A13: 10 | C13: 2 | E13: 3 | G13: 250 | I13: 8 | K13: 1 | L13: 1 | M13: 2 | O13: 27 | Q13: 16 | S13: 8 | T13: 13 | U13: 8
A14: 11 | C14: 2 | D14: 1 | E14: 3 | G14: 250 | I14: 9 | K14: 1 | M14: 2 | O14: 29.7 | Q14: 18 | S14: 9 | T14: 13 | U14: 9
A15: 12 | B15: 5 | C15: 2 | E15: 3 | F15: 272 | G15: 250 | I15: 10 | K15: 1 | M15: 2 | N15: 36 | O15: 32.4 | Q15: 20 | S15: 10 | T15: 13 | U15: 10
A16: 13 | C16: 2 | D16: 1 | E16: 3 | G16: 250 | I16: 11 | K16: 1 | M16: 3 | N16: 36 | O16: 35.1 | Q16: 22 | R16: 1 | S16: 11 | T16: 13 | U16: 11
A17: 14 | C17: 2 | D17: 1 | E17: 3 | G17: 250 | I17: 12 | K17: 1 | M17: 3 | N17: 36 | O17: 37.8 | Q17: 24 | R17: 8 | S17: 12 | T17: 13 | U17: 12
A18: 15 | C18: 2 | E18: 3 | G18: 250 | I18: 13 | K18: 1 | M18: 3 | N18: 36 | O18: 40.5 | Q18: 26 | R18: 8 | S18: 13 | T18: 13 | U18: 13
A19: 16 | C19: 2 | E19: 3 | G19: 245 | H19: 1 | I19: 14 | K19: 1 | M19: 4 | N19: 36 | O19: 43.2 | Q19: 28 | R19: 8 | S19: 14 | T19: 13 | U19: 14
A20: 17 | C20: 2 | E20: 3 | G20: 240 | H20: 1 | I20: 15 | K20: 1 | M20: 4 | N20: 36 | O20: 45.9 | Q20: 30 | R20: 8 | S20: 15 | T20: 13 | U20: 15
A21: 18 | C21: 2 | E21: 3 | G21: 235 | H21: 1 | I21: 16 | K21: 1 | M21: 4 | N21: 36 | O21: 48.6 | Q21: 32 | R21: 8 | S21: 16 | T21: 24 | U21: 16
A22: 19 | B22: 1 | C22: 2 | D22: 3 | E22: 3 | F22: 168 | G22: 230 | H22: 4 | I22: 17 | J22: 0 | K22: 1 | L22: 1 | M22: 4 | N22: 36 | O22: 51.3 | P22: =+P12+3 -> 40 | Q22: 34 | R22: 8 | S22: 17 | T22: 24 | U22: 17
A23: 20 | C23: 2 | E23: 3 | G23: 225 | H23: 4 | I23: 18 | K23: 1 | L23: 1 | M23: 5 | N23: 36 | O23: 54 | P23: 40 | Q23: 36 | R23: 8 | S23: 18 | T23: 24 | U23: 18
A24: 21 | B24: 1 | C24: 2 | D24: 5 | E24: 3 | F24: 190 | G24: 220 | H24: 5 | I24: 19 | K24: 1 | L24: 2 | M24: 5 | N24: 36 | O24: 56.7 | P24: 40 | Q24: 38 | R24: 8 | S24: 19 | T24: 24 | U24: 19
A25: 22 | B25: 1 | C25: 2 | D25: 3 | E25: 3 | F25: 191 | G25: 215 | H25: 5 | I25: 20 | J25: 0 | K25: 1 | L25: 3 | M25: 5 | N25: 49 | O25: 59.4 | P25: 47 | Q25: 40 | R25: 8 | S25: 20 | T25: 24 | U25: 20
A26: 23 | B26: 2 | C26: 2 | D26: 2 | E26: 3 | F26: 191 | G26: 210 | H26: 6 | I26: 21 | K26: 1 | L26: 4 | M26: 5 | N26: 49 | O26: 62.1 | P26: 96 | Q26: 42 | R26: 8 | S26: 21 | T26: 42 | U26: 21
A27: 24 | B27: 1 | C27: 2 | D27: 2 | E27: 3 | F27: 109 | G27: 205 | H27: 6 | I27: 22 | K27: 1 | L27: 5 | M27: 6 | N27: 49 | O27: 64.8 | P27: 96 | Q27: 44 | R27: 8 | S27: 22 | T27: 42 | U27: 22
A28: 25 | B28: 1 | C28: 2 | D28: 0 | E28: 3 | F28: 108 | G28: 200 | H28: 6 | I28: 23 | K28: 1 | L28: 5 | M28: 6 | N28: 49 | O28: 67.5 | P28: 96 | Q28: 46 | R28: 8 | S28: 23 | T28: 42 | U28: 23
A29: 26 | B29: 1 | C29: 2 | D29: 1 | E29: 3 | F29: 108 | G29: 195 | H29: 6 | I29: 24 | K29: 1 | L29: 5 | M29: 6 | N29: 49 | O29: 70.2 | P29: 96 | Q29: 48 | R29: 8 | S29: 24 | T29: 42 | U29: 24
A30: 27 | B30: 1 | C30: 2 | D30: 2 | E30: 3 | F30: 108 | G30: 190 | H30: 8 | I30: 25 | K30: 1 | L30: 6 | M30: 6 | N30: 49 | O30: 72.9 | P30: 96 | Q30: 50 | R30: 14 | S30: 25 | T30: 42 | U30: 25
A31: 28 | B31: 2 | C31: 2 | D31: 0 | E31: 3 | F31: 141 | G31: 185 | H31: 8 | I31: 26 | K31: 1 | L31: 6 | M31: =M30+1 -> 7 | N31: 49 | O31: 75.6 | P31: 96 | Q31: 52 | R31: 14 | S31: 26 | T31: 42 | U31: 26
A32: 29 | B32: 2 | C32: 2 | E32: 3 | F32: 141 | G32: 180 | H32: 8 | I32: 27 | K32: 1 | L32: 6 | M32: 7 | N32: 49 | O32: 78.3 | P32: 96 | Q32: 54 | R32: 14 | S32: 27 | T32: 42 | U32: 27
A33: 30 | B33: 2 | C33: 2 | D33: 2 | E33: 3 | F33: 96 | G33: 175 | H33: 8 | I33: 28 | K33: 1 | L33: 6 | M33: 7 | N33: 49 | O33: 81 | P33: 96 | Q33: 56 | R33: 14 | S33: 28 | T33: 42 | U33: 28
A34: 31 | B34: 3 | C34: 2 | D34: 1 | E34: 3 | F34: 107 | G34: 170 | H34: 8 | I34: 29 | K34: 1 | L34: 6 | M34: 7 | N34: 49 | O34: 83.7 | P34: 96 | Q34: 58 | R34: 14 | S34: 29 | T34: 44 | U34: 29
A35: 32 | B35: 1 | C35: 2 | D35: 3 | E35: 3 | F35: 107 | G35: 165 | H35: 8 | I35: 30 | K35: 1 | L35: 6 | M35: 8 | N35: 49 | O35: 86.4 | P35: 96 | Q35: 60 | R35: 14 | S35: 30 | T35: 44 | U35: 30
A36: 33 | B36: 1 | C36: 2 | D36: 1 | E36: 3 | F36: 107 | G36: 160 | H36: 8 | I36: 31 | K36: 1 | L36: 6 | M36: 8 | N36: 49 | O36: 89.1 | P36: 96 | Q36: 62 | R36: 14 | S36: 31 | T36: 44 | U36: 31
A37: 34 | B37: 1 | C37: 2 | D37: 3 | E37: 3 | F37: 114 | G37: 155 | H37: 8 | I37: 32 | K37: 1 | L37: 6 | M37: 8 | N37: 49 | O37: 91.8 | P37: 96 | Q37: 64 | R37: 14 | S37: 32 | T37: 44 | U37: 32
A38: 35 | B38: 1 | C38: 2 | D38: 0 | E38: 3 | F38: 114 | G38: 150 | H38: 8 | I38: 33 | K38: 1 | L38: 6 | M38: 8 | N38: 49 | O38: 94.5 | P38: 96 | Q38: 66 | R38: 14 | S38: 33 | T38: 44 | U38: 33
A39: 36 | B39: 1 | C39: 2 | D39: 1 | E39: 3 | F39: 114 | G39: 145 | H39: 8 | I39: 34 | K39: 1 | L39: 6 | M39: 8 | N39: 49 | O39: 97.2 | P39: 96 | Q39: 68 | R39: 14 | S39: 34 | T39: 46 | U39: 34
A40: 37 | B40: 1 | C40: 2 | D40: 0 | E40: 3 | F40: 114 | G40: 140 | H40: 9 | I40: 35 | K40: 1 | L40: 6 | M40: 9 | N40: 49 | O40: 99.9 | P40: 96 | Q40: 70 | R40: 14 | S40: 35 | T40: 46 | U40: 35
A41: 38 | B41: 1 | C41: 2 | D41: 3 | E41: 3 | F41: 114 | G41: 135 | H41: 9 | I41: 36 | K41: 1 | L41: 6 | M41: 9 | N41: 49 | O41: 102.6 | P41: 96 | Q41: 72 | R41: 14 | S41: 36 | T41: 47 | U41: 36
A42: 39 | B42: 1 | C42: 2 | D42: 2 | E42: 3 | F42: 114 | G42: 130 | H42: 9 | I42: 37 | K42: 1 | L42: 6 | M42: 9 | N42: 49 | O42: 105.3 | P42: 96 | Q42: 74 | R42: 14 | S42: 37 | T42: 49 | U42: 37
A43: 40 | B43: 1 | C43: 2 | D43: 2 | E43: 3 | F43: 107 | G43: 125 | H43: 11 | I43: 38 | K43: 1 | L43: 6 | M43: 9 | N43: 49 | O43: 108 | P43: 96 | Q43: 76 | R43: 14 | S43: 38 | T43: 49 | U43: 38
A44: 41 | B44: 1 | C44: 2 | D44: 1 | E44: 3 | F44: 107 | G44: 120 | H44: 11 | I44: 39 | K44: 1 | L44: 6 | M44: 10 | N44: 49 | O44: 110.7 | P44: 96 | Q44: 78 | R44: 14 | S44: 39 | T44: 49 | U44: 39
A45: 42 | B45: 1 | C45: 2 | D45: 1 | E45: 3 | F45: 89 | G45: 115 | H45: 11 | I45: 40 | K45: 1 | L45: 6 | M45: 10 | N45: 49 | O45: 113.4 | P45: 96 | Q45: 80 | R45: 14 | S45: 40 | T45: 49 | U45: 40
A46: 43 | B46: 1 | C46: 2 | D46: 2 | E46: 3 | F46: 89 | G46: 110 | H46: 11 | I46: 41 | K46: 1 | L46: 6 | M46: 10 | N46: 49 | O46: 116.1 | P46: 96 | Q46: 82 | R46: 14 | S46: 41 | T46: 54 | U46: 41
A47: 44 | B47: 2 | C47: 2 | D47: 1 | E47: 3 | F47: 123 | G47: 105 | H47: 11 | I47: 42 | K47: 1 | L47: 6 | M47: 10 | N47: 49 | O47: 118.8 | P47: 96 | Q47: 84 | R47: 15 | S47: 42 | T47: 60 | U47: 42
A48: 45 | B48: 2 | C48: 2 | D48: 2 | E48: 3 | F48: 67 | G48: 100 | H48: 11 | I48: 43 | K48: 1 | L48: 26 | M48: 10 | N48: 50 | O48: 121.5 | P48: 96 | Q48: 86 | R48: 15 | S48: 43 | T48: 62 | U48: 43
A49: 46 | B49: 2 | C49: 2 | D49: 6 | E49: 3 | F49: 87 | G49: 95 | H49: 13 | I49: 44 | K49: 1 | L49: 26 | M49: 11 | N49: 50 | O49: 124.2 | P49: 96 | Q49: 88 | R49: 15 | S49: 44 | T49: 62 | U49: 44
A50: 47 | B50: 3 | C50: 2 | D50: 2 | E50: 3 | F50: 90 | G50: 90 | H50: 14 | I50: 45 | K50: 1 | L50: 26 | M50: 11 | N50: 54 | O50: 126.9 | P50: 96 | Q50: 90 | R50: 15 | S50: 45 | T50: 62 | U50: 45
A51: 48 | B51: 2 | C51: 2 | D51: 4 | E51: 3 | F51: 90 | G51: 85 | H51: 22 | I51: 46 | K51: 1 | L51: 26 | M51: 11 | N51: 54 | O51: 129.6 | P51: 96 | Q51: 92 | R51: 15 | S51: 46 | T51: 62 | U51: 46
A52: 49 | B52: 2 | C52: 2 | D52: 2 | E52: 3 | F52: 82 | G52: 80 | H52: 22 | I52: 47 | K52: 1 | L52: 54 | M52: 12 | N52: 54 | O52: 132.3 | P52: 96 | Q52: 94 | R52: 15 | S52: 47 | T52: 62 | U52: 47
A53: 50 | B53: 1 | C53: 2 | D53: 2 | E53: 3 | F53: 82 | G53: 75 | H53: 24 | I53: 48 | K53: 1 | L53: 54 | M53: 12 | N53: 54 | O53: 135 | P53: 96 | Q53: 96 | R53: 15 | S53: 48 | T53: 62 | U53: 48
A54: 51 | B54: 0 | C54: 2 | D54: 1 | E54: 3 | F54: 90 | G54: 70 | H54: 24 | I54: 49 | K54: 1 | L54: 79 | M54: 12 | N54: 54 | O54: 137.7 | P54: 96 | Q54: 98 | R54: 15 | S54: 49 | T54: 65 | U54: 49
A55: 52 | B55: 0 | C55: 2 | D55: 1 | E55: 3 | F55: 90 | G55: 65 | H55: 24 | I55: =+I54+1 -> 50 | K55: 1 | L55: 79 | M55: 12 | N55: 54 | O55: =+O54+2.7 -> 140.4 | P55: 96 | Q55: =+Q54+2 -> 100 | R55: 15 | S55: =+S54+1 -> 50 | T55: 65 | U55: =+U54+1 -> 50
A56: 1 | B56: 0 | C56: 2 | D56: 1 | E56: 3 | F56: 90 | G56: 65 | H56: 24 | I56: =+I55+1 -> 51 | K56: 1 | L56: 79 | M56: 12 | N56: 54 | O56: =+O55+2.7 -> 143.1 | P56: 2 | Q56: =+Q55+2 -> 102 | R56: 15 | S56: =+S55+1 -> 51 | T56: 65 | U56: =+U55+1 -> 51
A57: 2
A58: 3
A59: TOTAL | D59: =SUM(D4:D56) -> 65 | H59: =SUM(H4:H55) -> 361 | J59: =SUM(J4:J55) -> 0 | L59: =SUM(L4:L55) -> 505 | M59: 12 | N59: =N25 -> 49 | P59: =SUM(P4:P55) -> 3113 | T59: =VLOOKUP(B1,B4:B55,18,1) -> 

Sheet Données générales
A1: Matrice DO CC | B1: Résultats | C1: Objectif | D1: 2018-01-01 | E1: 2018-02-01 | F1: 2018-03-01 | G1: 2018-04-01 | H1: 2018-05-01 | I1: 2018-06-01 | J1: 2018-07-01 | K1: 2018-08-01 | L1: 2018-09-01 | M1: 2018-10-01 | N1: 2018-11-01 | O1: 2018-12-01 | W1: Actions issues visites | Z1: Visites sécu | AS1: PROJETS
A2: 3SE | Q2: Chantiers 5s | W2: Valeur : | X2: =B8 -> 0 | Z2: Valeur : | AA2: =B7+B9 -> 0 | AS2: GIE IMAC
A3: Nombre d'accident avec arrêt | B3: =SUM(D3:O3)/C3 -> 3.5 | C3: 4 | D3: =SUM('1'!C3,'2'!C3,'3'!C3,'6'!C3,'5'!C3,'7'!C3,'8'!C3,'4'!C3) -> 11 | E3: =SUM('1'!E3,'2'!E3,'3'!E3,'6'!E3,'5'!E3,'7'!E3,'8'!E3,'4'!E3) -> 3 | F3: =SUM('1'!F3,'2'!F3,'3'!F3,'6'!F3,'5'!F3,'7'!F3,'8'!F3,'4'!F3) -> 0 | G3: =SUM('1'!F3,'2'!F3,'3'!F3,'6'!F3,'5'!F3,'7'!F3,'8'!F3,'4'!F3) -> 0 | H3: =SUM('1'!H3,'2'!H3,'3'!H3,'6'!H3,'5'!H3,'7'!H3,'8'!H3,'4'!H3) -> 0 | I3: =SUM('1'!I3,'2'!I3,'3'!I3,'6'!I3,'5'!I3,'7'!I3,'8'!I3,'4'!I3) -> 0 | J3: =SUM('1'!I3,'2'!I3,'3'!I3,'6'!I3,'5'!I3,'7'!I3,'8'!I3,'4'!I3) -> 0 | K3: =SUM('1'!K3,'2'!K3,'3'!K3,'6'!K3,'5'!K3,'7'!K3,'8'!K3,'4'!K3) -> 0 | L3: =SUM('1'!L3,'2'!L3,'3'!L3,'6'!L3,'5'!L3,'7'!L3,'8'!L3,'4'!L3) -> 0 | M3: =SUM('1'!L3,'2'!L3,'3'!L3,'6'!L3,'5'!L3,'7'!L3,'8'!L3,'4'!L3) -> 0 | N3: =SUM('1'!N3,'2'!N3,'3'!N3,'6'!N3,'5'!N3,'7'!N3,'8'!N3,'4'!N3) -> 0 | O3: =SUM('1'!O3,'2'!O3,'3'!O3,'6'!O3,'5'!O3,'7'!O3,'8'!O3,'4'!O3) -> 0 | R3: Valeur | S3: Degré | U3: x | V3: y | W3: Bas | X3: 33 | Z3: Bas | AA3: 100 | AS3: AD1/BDH
A4: Nombre d'accident sans arrêt | B4: 0 | C4: 10 | D4: =SUM('1'!C4,'2'!C4,'3'!C4,'6'!C4,'5'!C4,'7'!C4,'8'!C4,'4'!C4) -> 0 | E4: =SUM('1'!E4,'2'!E4,'3'!E4,'6'!E4,'5'!E4,'7'!E4,'8'!E4,'4'!E4) -> 0 | F4: =SUM('1'!F4,'2'!F4,'3'!F4,'6'!F4,'5'!F4,'7'!F4,'8'!F4,'4'!F4) -> 0 | G4: =SUM('1'!F4,'2'!F4,'3'!F4,'6'!F4,'5'!F4,'7'!F4,'8'!F4,'4'!F4) -> 0 | H4: =SUM('1'!H4,'2'!H4,'3'!H4,'6'!H4,'5'!H4,'7'!H4,'8'!H4,'4'!H4) -> 0 | I4: =SUM('1'!I4,'2'!I4,'3'!I4,'6'!I4,'5'!I4,'7'!I4,'8'!I4,'4'!I4) -> 0 | J4: =SUM('1'!I4,'2'!I4,'3'!I4,'6'!I4,'5'!I4,'7'!I4,'8'!I4,'4'!I4) -> 0 | K4: =SUM('1'!K4,'2'!K4,'3'!K4,'6'!K4,'5'!K4,'7'!K4,'8'!K4,'4'!K4) -> 0 | L4: =SUM('1'!L4,'2'!L4,'3'!L4,'6'!L4,'5'!L4,'7'!L4,'8'!L4,'4'!L4) -> 0 | M4: =SUM('1'!L4,'2'!L4,'3'!L4,'6'!L4,'5'!L4,'7'!L4,'8'!L4,'4'!L4) -> 0 | N4: =SUM('1'!N4,'2'!N4,'3'!N4,'6'!N4,'5'!N4,'7'!N4,'8'!N4,'4'!N4) -> 0 | O4: =SUM('1'!O4,'2'!O4,'3'!O4,'6'!O4,'5'!O4,'7'!O4,'8'!O4,'4'!O4) -> 0 | Q4: Min | R4: 0 | S4: 0 | U4: =50-(50*COS(RADIANS(S6))) -> 0.6155829702 | V4: =50*SIN(RADIANS(S6)) -> 7.821723252 | W4: Moyen | X4: 33 | Z4: Moyen | AA4: 100 | AS4: AD2
A5: Dosimétrie opérationnelle / mois (homme.mSv) | B5: =SUM(D5:O5)/C6 -> 0 | D5: =SUM('1'!C5,'2'!C5,'3'!C5,'6'!C5,'5'!C5,'7'!C5,'8'!C5,'4'!C5) -> 0 | E5: =SUM('1'!E5,'2'!E5,'3'!E5,'6'!E5,'5'!E5,'7'!E5,'8'!E5,'4'!E5) -> 0 | F5: =SUM('1'!F5,'2'!F5,'3'!F5,'6'!F5,'5'!F5,'7'!F5,'8'!F5,'4'!F5) -> 0 | G5: =SUM('1'!F5,'2'!F5,'3'!F5,'6'!F5,'5'!F5,'7'!F5,'8'!F5,'4'!F5) -> 0 | H5: =SUM('1'!H5,'2'!H5,'3'!H5,'6'!H5,'5'!H5,'7'!H5,'8'!H5,'4'!H5) -> 0 | I5: =SUM('1'!I5,'2'!I5,'3'!I5,'6'!I5,'5'!I5,'7'!I5,'8'!I5,'4'!I5) -> 0 | J5: =SUM('1'!I5,'2'!I5,'3'!I5,'6'!I5,'5'!I5,'7'!I5,'8'!I5,'4'!I5) -> 0 | K5: =SUM('1'!K5,'2'!K5,'3'!K5,'6'!K5,'5'!K5,'7'!K5,'8'!K5,'4'!K5) -> 0 | L5: =SUM('1'!L5,'2'!L5,'3'!L5,'6'!L5,'5'!L5,'7'!L5,'8'!L5,'4'!L5) -> 0 | M5: =SUM('1'!L5,'2'!L5,'3'!L5,'6'!L5,'5'!L5,'7'!L5,'8'!L5,'4'!L5) -> 0 | N5: =SUM('1'!N5,'2'!N5,'3'!N5,'6'!N5,'5'!N5,'7'!N5,'8'!N5,'4'!N5) -> 0 | O5: =SUM('1'!O5,'2'!O5,'3'!O5,'6'!O5,'5'!O5,'7'!O5,'8'!O5,'4'!O5) -> 0 | Q5: Max | R5: =20 -> 20 | S5: 180 | U5: =50-(2*COS(RADIANS(S6+90))) -> 50.31286893 | V5: =2*SIN(RADIANS(S6+90)) -> 1.975376681 | W5: Haut | X5: 33 | Z5: Haut | AA5: 100 | AS5: DEM/R7/T7/SEG/MG/R1/T1
A6: Dosimétrie objectif | C6: 0.4 | Q6: Résultats | R6: =B18 -> 1 | S6: =((R6-R4)/(R5-R4))*180 -> 9 | U6: =50-(2*COS(RADIANS(S6-90))) -> 49.68713107 | V6: =2*SIN(RADIANS(S6-90)) -> -1.975376681
A7: Nombre de VSP | B7: 0 | C7: 200 | D7: =SUM('1'!C6,'2'!C6,'3'!C6,'6'!C6,'5'!C6,'7'!C6,'8'!C6,'4'!C6) -> 0 | E7: =SUM('1'!E6,'2'!E6,'3'!E6,'6'!E6,'5'!E6,'7'!E6,'8'!E6,'4'!E6) -> 0 | F7: =SUM('1'!F6,'2'!F6,'3'!F6,'6'!F6,'5'!F6,'7'!F6,'8'!F6,'4'!F6) -> 0 | G7: =SUM('1'!F6,'2'!F6,'3'!F6,'6'!F6,'5'!F6,'7'!F6,'8'!F6,'4'!F6) -> 0 | H7: =SUM('1'!H6,'2'!H6,'3'!H6,'6'!H6,'5'!H6,'7'!H6,'8'!H6,'4'!H6) -> 0 | I7: =SUM('1'!I6,'2'!I6,'3'!I6,'6'!I6,'5'!I6,'7'!I6,'8'!I6,'4'!I6) -> 0 | J7: =SUM('1'!I6,'2'!I6,'3'!I6,'6'!I6,'5'!I6,'7'!I6,'8'!I6,'4'!I6) -> 0 | K7: =SUM('1'!K6,'2'!K6,'3'!K6,'6'!K6,'5'!K6,'7'!K6,'8'!K6,'4'!K6) -> 0 | L7: =SUM('1'!L6,'2'!L6,'3'!L6,'6'!L6,'5'!L6,'7'!L6,'8'!L6,'4'!L6) -> 0 | M7: =SUM('1'!L6,'2'!L6,'3'!L6,'6'!L6,'5'!L6,'7'!L6,'8'!L6,'4'!L6) -> 0 | N7: =SUM('1'!N6,'2'!N6,'3'!N6,'6'!N6,'5'!N6,'7'!N6,'8'!N6,'4'!N6) -> 0 | O7: =SUM('1'!O6,'2'!O6,'3'!O6,'6'!O6,'5'!O6,'7'!O6,'8'!O6,'4'!O6) -> 0 | Q7: Echelle 1 | R7: =((R5-R4)/5)+R4 -> 4 | U7: =U4 -> 0.6155829702 | V7: =V4 -> 7.821723252 | W7: Valeur X | X7: =X2 -> 0 | Y7: =X7 -> 0 | Z7: Valeur X | AA7: =AA2 -> 0 | AB7: =AA7 -> 0 | AS7: RADIOPROTECTION
A8: Nombre d'action en cours issue des VSP | B8: 0 | C8: 15 | D8: =SUM('1'!C7,'2'!C7,'3'!C7,'6'!C7,'5'!C7,'7'!C7,'8'!C7,'4'!C7) -> 0 | E8: =SUM('1'!E7,'2'!E7,'3'!E7,'6'!E7,'5'!E7,'7'!E7,'8'!E7,'4'!E7) -> 0 | F8: =SUM('1'!F7,'2'!F7,'3'!F7,'6'!F7,'5'!F7,'7'!F7,'8'!F7,'4'!F7) -> 0 | G8: =SUM('1'!F7,'2'!F7,'3'!F7,'6'!F7,'5'!F7,'7'!F7,'8'!F7,'4'!F7) -> 0 | H8: =SUM('1'!H7,'2'!H7,'3'!H7,'6'!H7,'5'!H7,'7'!H7,'8'!H7,'4'!H7) -> 0 | I8: =SUM('1'!I7,'2'!I7,'3'!I7,'6'!I7,'5'!I7,'7'!I7,'8'!I7,'4'!I7) -> 0 | J8: =SUM('1'!I7,'2'!I7,'3'!I7,'6'!I7,'5'!I7,'7'!I7,'8'!I7,'4'!I7) -> 0 | K8: =SUM('1'!K7,'2'!K7,'3'!K7,'6'!K7,'5'!K7,'7'!K7,'8'!K7,'4'!K7) -> 0 | L8: =SUM('1'!L7,'2'!L7,'3'!L7,'6'!L7,'5'!L7,'7'!L7,'8'!L7,'4'!L7) -> 0 | M8: =SUM('1'!L7,'2'!L7,'3'!L7,'6'!L7,'5'!L7,'7'!L7,'8'!L7,'4'!L7) -> 0 | N8: =SUM('1'!N7,'2'!N7,'3'!N7,'6'!N7,'5'!N7,'7'!N7,'8'!N7,'4'!N7) -> 0 | O8: =SUM('1'!O7,'2'!O7,'3'!O7,'6'!O7,'5'!O7,'7'!O7,'8'!O7,'4'!O7) -> 0 | Q8: Echelle 2 | R8: =((R5-R4)*2/5)+R4 -> 8 | U8: 50 | V8: 0 | W8: Valeur Y | X8: 0 | Y8: 2 | Z8: Valeur Y | AA8: 0 | AB8: 2 | AS8: EVAPO R7
A9: Nombre de vérifs sécurité | B9: 0 | C9: 20 | D9: =SUM('1'!C8,'2'!C8,'3'!C8,'6'!C8,'5'!C8,'7'!C8,'8'!C8,'4'!C8) -> 0 | E9: =SUM('1'!E8,'2'!E8,'3'!E8,'6'!E8,'5'!E8,'7'!E8,'8'!E8,'4'!E8) -> 0 | F9: =SUM('1'!F8,'2'!F8,'3'!F8,'6'!F8,'5'!F8,'7'!F8,'8'!F8,'4'!F8) -> 0 | G9: =SUM('1'!F8,'2'!F8,'3'!F8,'6'!F8,'5'!F8,'7'!F8,'8'!F8,'4'!F8) -> 0 | H9: =SUM('1'!H8,'2'!H8,'3'!H8,'6'!H8,'5'!H8,'7'!H8,'8'!H8,'4'!H8) -> 0 | I9: =SUM('1'!I8,'2'!I8,'3'!I8,'6'!I8,'5'!I8,'7'!I8,'8'!I8,'4'!I8) -> 0 | J9: =SUM('1'!I8,'2'!I8,'3'!I8,'6'!I8,'5'!I8,'7'!I8,'8'!I8,'4'!I8) -> 0 | K9: =SUM('1'!K8,'2'!K8,'3'!K8,'6'!K8,'5'!K8,'7'!K8,'8'!K8,'4'!K8) -> 0 | L9: =SUM('1'!L8,'2'!L8,'3'!L8,'6'!L8,'5'!L8,'7'!L8,'8'!L8,'4'!L8) -> 0 | M9: =SUM('1'!L8,'2'!L8,'3'!L8,'6'!L8,'5'!L8,'7'!L8,'8'!L8,'4'!L8) -> 0 | N9: =SUM('1'!N8,'2'!N8,'3'!N8,'6'!N8,'5'!N8,'7'!N8,'8'!N8,'4'!N8) -> 0 | O9: =SUM('1'!O8,'2'!O8,'3'!O8,'6'!O8,'5'!O8,'7'!O8,'8'!O8,'4'!O8) -> 0 | Q9: Echelle 3 | R9: =((R5-R4)*3/5) + R4 -> 12 | AS9: MULTI SERVICES
A10: Opérations clients | Q10: Echelle 4 | R10: =((R5-R4)*4/5) + R4 -> 16
A11: Carnet de commande | B11: 15 | C11: 20
A12: Nombre d'équivalent de mois de FAE | C12: 15000
A13: Evolution du CA (cumulé à date) en k€ | B13: 1500000 | C13: 3000000
A14: MCD (Cumulé annuel) en k€
A15: Excellence opérationnelle
A16: Moyenne des FAC | B16: =AVERAGE(D16:O16) -> 3.566666667 | C16: 3.5 | D16: =SUM('1'!C15,'2'!C15,'3'!C15,'6'!C15,'5'!C15,'7'!C15,'8'!C15,'4'!C15) -> 4 | E16: =SUM('1'!D15,'2'!D15,'3'!D15,'6'!D15,'5'!D15,'7'!D15,'8'!D15,'4'!D15) -> 5 | F16: =SUM('1'!E15,'2'!E15,'3'!E15,'6'!E15,'5'!E15,'7'!E15,'8'!E15,'4'!E15) -> 4 | G16: =SUM('1'!F15,'2'!F15,'3'!F15,'6'!F15,'5'!F15,'7'!F15,'8'!F15,'4'!F15) -> 5 | H16: =SUM('1'!G15,'2'!G15,'3'!G15,'6'!G15,'5'!G15,'7'!G15,'8'!G15,'4'!G15) -> 3.5 | I16: =SUM('1'!H15,'2'!H15,'3'!H15,'6'!H15,'5'!H15,'7'!H15,'8'!H15,'4'!H15) -> 3 | J16: =SUM('1'!I15,'2'!I15,'3'!I15,'6'!I15,'5'!I15,'7'!I15,'8'!I15,'4'!I15) -> 4 | K16: =SUM('1'!J15,'2'!J15,'3'!J15,'6'!J15,'5'!J15,'7'!J15,'8'!J15,'4'!J15) -> 2 | L16: =SUM('1'!K15,'2'!K15,'3'!K15,'6'!K15,'5'!K15,'7'!K15,'8'!K15,'4'!K15) -> 4 | M16: =SUM('1'!L15,'2'!L15,'3'!L15,'6'!L15,'5'!L15,'7'!L15,'8'!L15,'4'!L15) -> 3.3 | N16: =SUM('1'!M15,'2'!M15,'3'!M15,'6'!M15,'5'!M15,'7'!M15,'8'!M15,'4'!M15) -> 2 | O16: =SUM('1'!N15,'2'!N15,'3'!N15,'6'!N15,'5'!N15,'7'!N15,'8'!N15,'4'!N15) -> 3 | U16: FAC
A17: Nombre de FNC | U17: Valeur | V17: % | W17: Niveau
A18: Nombre de chantiers 5 S | B18: =+SUM(D18:O18) -> 1 | C18: 4 | D18: =SUM('1'!C17,'2'!C17,'3'!C17,'6'!C17,'5'!C17,'7'!C17,'8'!C17,'4'!C17) -> 1 | E18: =SUM('1'!D17,'2'!D17,'3'!D17,'6'!D17,'5'!D17,'7'!D17,'8'!D17,'4'!D17) -> 0 | F18: =SUM('1'!E17,'2'!E17,'3'!E17,'6'!E17,'5'!E17,'7'!E17,'8'!E17,'4'!E17) -> 0 | G18: =SUM('1'!F17,'2'!F17,'3'!F17,'6'!F17,'5'!F17,'7'!F17,'8'!F17,'4'!F17) -> 0 | H18: =SUM('1'!G17,'2'!G17,'3'!G17,'6'!G17,'5'!G17,'7'!G17,'8'!G17,'4'!G17) -> 0 | I18: =SUM('1'!H17,'2'!H17,'3'!H17,'6'!H17,'5'!H17,'7'!H17,'8'!H17,'4'!H17) -> 0 | J18: =SUM('1'!I17,'2'!I17,'3'!I17,'6'!I17,'5'!I17,'7'!I17,'8'!I17,'4'!I17) -> 0 | K18: =SUM('1'!J17,'2'!J17,'3'!J17,'6'!J17,'5'!J17,'7'!J17,'8'!J17,'4'!J17) -> 0 | L18: =SUM('1'!K17,'2'!K17,'3'!K17,'6'!K17,'5'!K17,'7'!K17,'8'!K17,'4'!K17) -> 0 | M18: =SUM('1'!L17,'2'!L17,'3'!L17,'6'!L17,'5'!L17,'7'!L17,'8'!L17,'4'!L17) -> 0 | N18: =SUM('1'!M17,'2'!M17,'3'!M17,'6'!M17,'5'!M17,'7'!M17,'8'!M17,'4'!M17) -> 0 | O18: =SUM('1'!N17,'2'!N17,'3'!N17,'6'!N17,'5'!N17,'7'!N17,'8'!N17,'4'!N17) -> 0 | U18: =B16 -> 3.566666667 | V18: 0.2 | W18: Excellent
A19: Nbr idées Indigo émises LHA (cumulé annuel) | D19: =SUM('1'!C18,'2'!C18,'3'!C18,'6'!C18,'5'!C18,'7'!C18,'8'!C18,'4'!C18) -> 0 | E19: =(D19+(SUM('1'!D18,'2'!D18,'3'!D18,[9]DEMRT77SEGMGRT11!D18,'5'!D18,'6'!D18,'7'!D18,'8'!D18))) ->  | U19: =100%-U18 -> -2.566666667 | V19: 0.2 | W19: Bon
A20: Nbr idées Indigo déployées LHA (cumulé annuel) | V20: 0.2 | W20: Attention
A21: RH | V21: 0.2 | W21: Mauvais
A22: Absenteisme | B22: 0.1 | C22: 0.5 | P22: Up | Q22: =IF(B22<C22,1,NA()) -> 1 | V22: 0.2 | W22: Alerte
A23: %Formations réalisées(€)/plan de formation | P23: Down | Q23: =IF(B22>=C22,1,NA()) -> 
A24: Nombre d'heures supplémentaires | P24: Différence | Q24: =ROUND((B22-C22)*100,0) -> -40 | U24: =SUM(U18:U23) -> 1 | V24: =SUM(V18:V23) -> 1 | W24: Total
A25: Nombre de recrutement en retard | P25: Label valeur | Q25: =IF(B22>C22,CONCATENATE("+",Q24,"%"),CONCATENATE(Q24,"%")) -> -40%

Sheet 1
A1: GIE IMAC | B1: Résultats | C1: 2018-01-01 | D1: 2018-02-01 | E1: 2018-03-01 | F1: 2018-04-01 | G1: 2018-05-01 | H1: 2018-06-01 | I1: 2018-07-01 | J1: 2018-08-01 | K1: 2018-09-01 | L1: 2018-10-01 | M1: 2018-11-01 | N1: 2018-12-01 | AR1: PROJETS
A2: 3SE | AR2: GIE IMAC
A3: Nombre d'accident avec arrêt | B3: =SUM(C3:N3) -> 6 | C3: 1 | D3: 2 | E3: 3 | AR3: AD1/BDH
A4: Nombre d'accident sans arrêt | B4: 0 | AR4: AD2
A5: Dosimétrie opérationnelle / mois (homme.mSv) | B5: 0 | AR5: DEM/R7/T7/SEG/MG/R1/T1
A6: Nombre de VSP | B6: 0 | AR6: RADIOPROTECTION
A7: Nombre d'action en cours issue des VSP | B7: 0 | AR7: EVAPO R7
A8: Nombre de vérifs sécurité | B8: 0 | AR8: MULTI SERVICES
A9: Opérations clients
A10: Carnet de commande
A11: Nombre d'équivalent de mois de FAE
A12: Evolution du CA (cumulé à date) en k€
A13: MCD (Cumulé annuel) en k€
A14: Excellence opérationnelle
A15: Moyenne des FAC | C15: 4 | D15: 3 | E15: 4 | F15: 2 | G15: 3.5 | H15: 3 | I15: 4 | J15: 2 | K15: 4 | L15: 3.3 | M15: 2 | N15: 3
A16: Nombre de FNC
A17: Nombre de chantiers 5 S
A18: Nbr idées Indigo émises LHA (cumulé annuel)
A19: Nbr idées Indigo déployées LHA (cumulé annuel)
A20: RH | O20: Up
A21: Absenteisme | O21: Down
A22: %Formations réalisées(€)/plan de formation
A23: Nombre d'heures supplémentaires
A24: Nombre de recrutement en retard

Sheet 2
A1: AD1 BDH | B1: Résultats | C1: 2018-01-01 | D1: 2018-02-01 | E1: 2018-03-01 | F1: 2018-04-01 | G1: 2018-05-01 | H1: 2018-06-01 | I1: 2018-07-01 | J1: 2018-08-01 | K1: 2018-09-01 | L1: 2018-10-01 | M1: 2018-11-01 | N1: 2018-12-01 | AR1: PROJETS
A2: 3SE | AR2: GIE IMAC
A3: Nombre d'accident avec arrêt | B3: =SUM(C3:N3) -> 0 | AR3: AD1/BDH
A4: Nombre d'accident sans arrêt | B4: =SUM(C4:N4) -> 0 | AR4: AD2
A5: Dosimétrie opérationnelle / mois (homme.mSv) | AR5: DEM/R7/T7/SEG/MG/R1/T1
A6: Nombre de VSP | AR6: RADIOPROTECTION
A7: Nombre d'action en cours issue des VSP | AR7: EVAPO R7
A8: Nombre de vérifs sécurité | AR8: MULTI SERVICES
A9: Opérations clients
A10: Carnet de commande
A11: Nombre d'équivalent de mois de FAE
A12: Evolution du CA (cumulé à date) en k€
A13: MCD (Cumulé annuel) en k€
A14: Excellence opérationnelle
A15: Moyenne des FAC | D15: 2 | F15: 3
A16: Nombre de FNC
A17: Nombre de chantiers 5 S | C17: =1 -> 1
A18: Nbr idées Indigo émises LHA (cumulé annuel)
A19: Nbr idées Indigo déployées LHA (cumulé annuel)
A20: RH
A21: Absenteisme
A22: %Formations réalisées(€)/plan de formation
A23: Nombre d'heures supplémentaires
A24: Nombre de recrutement en retard

Sheet 3
A1: AD2 | B1: Résultats | C1: 2018-01-01 | D1: 2018-02-01 | E1: 2018-03-01 | F1: 2018-04-01 | G1: 2018-05-01 | H1: 2018-06-01 | I1: 2018-07-01 | J1: 2018-08-01 | K1: 2018-09-01 | L1: 2018-10-01 | M1: 2018-11-01 | N1: 2018-12-01 | AR1: PROJETS
A2: 3SE | AR2: GIE IMAC
A3: Nombre d'accident avec arrêt | B3: =SUM(C3:N3) -> 0 | AR3: AD1/BDH
A4: Nombre d'accident sans arrêt | B4: =SUM(C4:N4) -> 0 | AR4: AD2
A5: Dosimétrie opérationnelle / mois (homme.mSv) | AR5: DEM/R7/T7/SEG/MG/R1/T1
A6: Nombre de VSP | AR6: RADIOPROTECTION
A7: Nombre d'action en cours issue des VSP | AR7: EVAPO R7
A8: Nombre de vérifs sécurité | AR8: MULTI SERVICES
A9: Opérations clients
A10: Carnet de commande
A11: Nombre d'équivalent de mois de FAE
A12: Evolution du CA (cumulé à date) en k€
A13: MCD (Cumulé annuel) en k€
A14: Excellence opérationnelle
A15: Moyenne des FAC
A16: Nombre de FNC
A17: Nombre de chantiers 5 S
A18: Nbr idées Indigo émises LHA (cumulé annuel)
A19: Nbr idées Indigo déployées LHA (cumulé annuel)
A20: RH
A21: Absenteisme
A22: %Formations réalisées(€)/plan de formation
A23: Nombre d'heures supplémentaires
A24: Nombre de recrutement en retard

Sheet 4
A1: DEM R7 T7 SEG MG R1 T1 | B1: Résultats | C1: 2018-01-01 | D1: 2018-02-01 | E1: 2018-03-01 | F1: 2018-04-01 | G1: 2018-05-01 | H1: 2018-06-01 | I1: 2018-07-01 | J1: 2018-08-01 | K1: 2018-09-01 | L1: 2018-10-01 | M1: 2018-11-01 | N1: 2018-12-01 | AR1: PROJETS
A2: 3SE | AR2: GIE IMAC
A3: Nombre d'accident avec arrêt | B3: =SUM(C3:N3) -> 10 | C3: 10 | AR3: AD1/BDH
A4: Nombre d'accident sans arrêt | B4: 0 | AR4: AD2
A5: Dosimétrie opérationnelle / mois (homme.mSv) | B5: 0 | AR5: DEM/R7/T7/SEG/MG/R1/T1
A6: Nombre de VSP | B6: 0 | AR6: RADIOPROTECTION
A7: Nombre d'action en cours issue des VSP | B7: 0 | AR7: EVAPO R7
A8: Nombre de vérifs sécurité | B8: 0 | AR8: MULTI SERVICES
A9: Opérations clients
A10: Carnet de commande
A11: Nombre d'équivalent de mois de FAE
A12: Evolution du CA (cumulé à date) en k€
A13: MCD (Cumulé annuel) en k€
A14: Excellence opérationnelle
A15: Moyenne des FAC
A16: Nombre de FNC
A17: Nombre de chantiers 5 S
A18: Nbr idées Indigo émises LHA (cumulé annuel)
A19: Nbr idées Indigo déployées LHA (cumulé annuel)
A20: RH
A21: Absenteisme
A22: %Formations réalisées(€)/plan de formation
A23: Nombre d'heures supplémentaires
A24: Nombre de recrutement en retard

Sheet 5
A1: RADIOPROTECTION | B1: Résultats | C1: 2018-01-01 | D1: 2018-02-01 | E1: 2018-03-01 | F1: 2018-04-01 | G1: 2018-05-01 | H1: 2018-06-01 | I1: 2018-07-01 | J1: 2018-08-01 | K1: 2018-09-01 | L1: 2018-10-01 | M1: 2018-11-01 | N1: 2018-12-01 | AR1: PROJETS
A2: 3SE | AR2: GIE IMAC
A3: Nombre d'accident avec arrêt | B3: =SUM(C3:N3) -> 0 | AR3: AD1/BDH
A4: Nombre d'accident sans arrêt | B4: 0 | AR4: AD2
A5: Dosimétrie opérationnelle / mois (homme.mSv) | B5: 0 | AR5: DEM/R7/T7/SEG/MG/R1/T1
A6: Nombre de VSP | B6: 0 | AR6: RADIOPROTECTION
A7: Nombre d'action en cours issue des VSP | B7: 0 | AR7: EVAPO R7
A8: Nombre de vérifs sécurité | B8: 0 | AR8: MULTI SERVICES
A9: Opérations clients
A10: Carnet de commande
A11: Nombre d'équivalent de mois de FAE
A12: Evolution du CA (cumulé à date) en k€
A13: MCD (Cumulé annuel) en k€
A14: Excellence opérationnelle
A15: Moyenne des FAC
A16: Nombre de FNC
A17: Nombre de chantiers 5 S
A18: Nbr idées Indigo émises LHA (cumulé annuel)
A19: Nbr idées Indigo déployées LHA (cumulé annuel)
A20: RH
A21: Absenteisme
A22: %Formations réalisées(€)/plan de formation
A23: Nombre d'heures supplémentaires
A24: Nombre de recrutement en retard

Sheet 6
A1: EVAPO R7 | B1: Résultats | C1: 2018-01-01 | D1: 2018-02-01 | E1: 2018-03-01 | F1: 2018-04-01 | G1: 2018-05-01 | H1: 2018-06-01 | I1: 2018-07-01 | J1: 2018-08-01 | K1: 2018-09-01 | L1: 2018-10-01 | M1: 2018-11-01 | N1: 2018-12-01 | AR1: PROJETS
A2: 3SE | AR2: GIE IMAC
A3: Nombre d'accident avec arrêt | B3: =SUM(C3:N3) -> 0 | AR3: AD1/BDH
A4: Nombre d'accident sans arrêt | B4: 0 | AR4: AD2
A5: Dosimétrie opérationnelle / mois (homme.mSv) | B5: 0 | AR5: DEM/R7/T7/SEG/MG/R1/T1
A6: Nombre de VSP | B6: 0 | AR6: RADIOPROTECTION
A7: Nombre d'action en cours issue des VSP | B7: 0 | AR7: EVAPO R7
A8: Nombre de vérifs sécurité | B8: 0 | AR8: MULTI SERVICES
A9: Opérations clients
A10: Carnet de commande
A11: Nombre d'équivalent de mois de FAE
A12: Evolution du CA (cumulé à date) en k€
A13: MCD (Cumulé annuel) en k€
A14: Excellence opérationnelle
A15: Moyenne des FAC
A16: Nombre de FNC
A17: Nombre de chantiers 5 S
A18: Nbr idées Indigo émises LHA (cumulé annuel)
A19: Nbr idées Indigo déployées LHA (cumulé annuel)
A20: RH
A21: Absenteisme
A22: %Formations réalisées(€)/plan de formation
A23: Nombre d'heures supplémentaires
A24: Nombre de recrutement en retard

Sheet 7
A1: SILO 130 | B1: Résultats | C1: 2018-01-01 | D1: 2018-02-01 | E1: 2018-03-01 | F1: 2018-04-01 | G1: 2018-05-01 | H1: 2018-06-01 | I1: 2018-07-01 | J1: 2018-08-01 | K1: 2018-09-01 | L1: 2018-10-01 | M1: 2018-11-01 | N1: 2018-12-01 | AR1: PROJETS
A2: 3SE | AR2: GIE IMAC
A3: Nombre d'accident avec arrêt | B3: =SUM(C3:N3) -> 0 | AR3: AD1/BDH
A4: Nombre d'accident sans arrêt | B4: 0 | AR4: AD2
A5: Dosimétrie opérationnelle / mois (homme.mSv) | B5: 0 | AR5: DEM/R7/T7/SEG/MG/R1/T1
A6: Nombre de VSP | B6: 0 | AR6: RADIOPROTECTION
A7: Nombre d'action en cours issue des VSP | B7: 0 | AR7: EVAPO R7
A8: Nombre de vérifs sécurité | B8: 0 | AR8: MULTI SERVICES
A9: Opérations clients
A10: Carnet de commande
A11: Nombre d'équivalent de mois de FAE
A12: Evolution du CA (cumulé à date) en k€
A13: MCD (Cumulé annuel) en k€
A14: Excellence opérationnelle
A15: Moyenne des FAC
A16: Nombre de FNC
A17: Nombre de chantiers 5 S
A18: Nbr idées Indigo émises LHA (cumulé annuel)
A19: Nbr idées Indigo déployées LHA (cumulé annuel)
A20: RH
A21: Absenteisme
A22: %Formations réalisées(€)/plan de formation
A23: Nombre d'heures supplémentaires
A24: Nombre de recrutement en retard

Sheet 8
A1: MULTI SERVICES | B1: Résultats | C1: 2018-01-01 | D1: 2018-02-01 | E1: 2018-03-01 | F1: 2018-04-01 | G1: 2018-05-01 | H1: 2018-06-01 | I1: 2018-07-01 | J1: 2018-08-01 | K1: 2018-09-01 | L1: 2018-10-01 | M1: 2018-11-01 | N1: 2018-12-01 | AR1: PROJETS
A2: 3SE | AR2: GIE IMAC
A3: Nombre d'accident avec arrêt | B3: =SUM(C3:N3) -> 0 | AR3: AD1/BDH
A4: Nombre d'accident sans arrêt | B4: 0 | AR4: AD2
A5: Dosimétrie opérationnelle / mois (homme.mSv) | B5: 0 | AR5: DEM/R7/T7/SEG/MG/R1/T1
A6: Nombre de VSP | B6: 0 | AR6: RADIOPROTECTION
A7: Nombre d'action en cours issue des VSP | B7: 0 | AR7: EVAPO R7
A8: Nombre de vérifs sécurité | B8: 0 | AR8: MULTI SERVICES
A9: Opérations clients
A10: Carnet de commande
A11: Nombre d'équivalent de mois de FAE
A12: Evolution du CA (cumulé à date) en k€
A13: MCD (Cumulé annuel) en k€
A14: Excellence opérationnelle
A15: Moyenne des FAC
A16: Nombre de FNC
A17: Nombre de chantiers 5 S
A18: Nbr idées Indigo émises LHA (cumulé annuel)
A19: Nbr idées Indigo déployées LHA (cumulé annuel)
A20: RH
A21: Absenteisme
A22: %Formations réalisées(€)/plan de formation
A23: Nombre d'heures supplémentaires
A24: Nombre de recrutement en retard

Sheet SSSE
